lending/lending_fUSD_20240206
["ID","MTS","AMOUNT","RATE_DAILY","PERIOD"]
[313363075,1707234346264,-1302.81300079,0.00024972,2]
[313363076,1707234346283,-1842.22629024,0.0002498,2]
[313363077,1707234346305,-4263.07443407,0.00024982,2]
[313363078,1707234346324,-150.0,0.00024999,2]
[313363079,1707234346344,-937.18611161,0.00025,2]
[313363080,1707234346363,-202.85936825,0.00025,2]
[313363081,1707234346384,-1907.0887071,0.00028781,2]
[313363082,1707234346404,-168.0547895,0.00028781,2]
[313363083,1707234346424,-1589.9743297,0.00028782,2]
[313363084,1707234346444,-8897.67,0.00029491,2]
[313363085,1707234346464,-429.58,0.00029493,2]
[313363086,1707234346483,-366.23585006,0.000295,2]
[313363087,1707234346503,-585.09173402,0.0003,2]
[313363088,1707234346523,-155.0,0.0003,2]
[313363089,1707234346542,-2766.0,0.000302,2]
[313363090,1707234346561,-531.08932322,0.00030298,4]
[313363091,1707234346579,-500.0,0.00030298,7]
[313363092,1707234346600,-500.0,0.00030298,7]
[313363093,1707234346620,-501.42306486,0.00030299,4]
[313363094,1707234346640,-1942.07391729,0.000303,2]
[313363118,1707234408902,244234.33,0.00027,30]
[313363119,1707234416103,-155.0,0.00024917,2]
[313363120,1707234416124,-366.23585006,0.000295,2]
[313363121,1707234416145,-34.20268983,0.00030299,4]
[313363124,1707234425087,-238.35308325,0.00030299,4]
[313363125,1707234425111,-155.0,0.00030299,2]
[313363126,1707234425133,-10408.92608271,0.000303,2]
[313363127,1707234425155,-233.6,0.00031338,2]
[313363128,1707234425338,-150.0,0.00033145,7]
[313363129,1707234425361,-2317.999,0.00034159,2]
[313363130,1707234425382,-755.937,0.00034159,2]
[313363131,1707234425403,-150.0,0.00034548,10]
[313363132,1707234425423,-1259.17519794,0.00035255,2]
[313363133,1707234425444,-233.6,0.00035256,2]
[313363134,1707234425465,-157.91,0.00036105,2]
[313363135,1707234425485,-2136.24190171,0.00037531,2]
[313363136,1707234425507,-271.26223485,0.00037532,4]
[313363137,1707234425528,-282.97394366,0.00037533,14]
[313363138,1707234425551,-273.23128727,0.00037533,6]
[313363139,1707234425573,-9586.53363782,0.00037533,6]
[313363140,1707234425595,-172.67125608,0.00037533,6]
[313363141,1707234425618,-256.56382391,0.00037533,6]
[313363142,1707234425640,-176.58611188,0.00037533,6]
[313363143,1707234425662,-260.7334905,0.00037533,6]
[313363144,1707234425685,-447.24777212,0.00037533,6]
[313363145,1707234425707,-396.53261128,0.00037533,6]
[313363146,1707234425730,-695.75,0.00037981,2]
[313363147,1707234425750,-250.0,0.00037981,2]
[313363148,1707234425779,-375.1126612,0.00037998,4]
[313363149,1707234425806,-728.99082072,0.00037999,4]
[313363150,1707234425830,-200.0,0.00038099,2]
[313363151,1707234425851,-1000.0,0.00038111,120]
[313363152,1707234425873,-250.0,0.00038169,111]
[313363153,1707234425895,-150.42,0.00038356,2]
[313363154,1707234425917,-157.69,0.00038577,2]
[313363155,1707234425939,-216.52,0.00038604,2]
[313363156,1707234425963,-391.67158848,0.00038798,7]
[313363157,1707234425984,-192.03577205,0.00038798,4]
[313363158,1707234426006,-501.78798741,0.00038798,4]
[313363159,1707234426027,-155.63026771,0.00038798,4]
[313363160,1707234426048,-308.24034529,0.00038798,4]
[313363161,1707234426069,-292.10655255,0.00038799,4]
[313363162,1707234426090,-367.4463096,0.00038799,4]
[313363163,1707234426110,-21438.18330583,0.000388,4]
[313363164,1707234426133,-233.6,0.00039173,2]
[313363165,1707234426153,-306.89,0.00039484,30]
[313363166,1707234426174,-1000.0,0.000398,2]
[313363167,1707234426196,-1174.29293051,0.0003988,2]
[313363168,1707234426218,-3297.43432127,0.0004,4]
[313363169,1707234426240,-255.0,0.0004,12]
[313363170,1707234426260,-255.0,0.0004,12]
[313363171,1707234426281,-155.0,0.0004,2]
[313363172,1707234426303,-300.0,0.0004,30]
[313363173,1707234426324,-2700.0,0.0004,41]
[313363174,1707234426344,-150.0,0.00040018,2]
[313363175,1707234426365,-157.69,0.00040587,2]
[313363176,1707234426388,-300.0,0.00041,30]
[313363177,1707234426408,-4000.0,0.00041096,30]
[313363178,1707234426430,-205.0,0.000412,10]
[313363179,1707234426452,-157.91,0.00041482,2]
[313363180,1707234426473,-2191.466805,0.000416,39]
[313363181,1707234426493,-287.62759136,0.00041707,4]
[313363182,1707234426513,-15697.53868058,0.000419,4]
[313363183,1707234426535,-300.0,0.00042,30]
[313363184,1707234426556,-200.0,0.00042,2]
[313363185,1707234426578,-1500.0,0.000421,39]
[313363186,1707234426599,-597.01,0.00042384,10]
[313363187,1707234426622,-675.91,0.00042384,10]
[313363188,1707234426645,-563.26,0.00042384,10]
[313363189,1707234426669,-5352.50277076,0.00042394,16]
[313363190,1707234426693,-2676.25138538,0.00042394,16]
[313363191,1707234426716,-770.98038485,0.00042394,15]
[313363192,1707234426736,-532.4124588,0.00042516,4]
[313363193,1707234426757,-16094.50251453,0.00042567,2]
[313363194,1707234426779,-176.13214682,0.00042568,4]
[313363195,1707234426799,-1500.0,0.000426,39]
[313363196,1707234426823,-11571.56545522,0.00042611,16]
[313363197,1707234429114,-2562.30728402,0.00037531,4]
[313363198,1707234429139,-177.16249228,0.00042611,16]
[313363199,1707234429159,-359.96713143,0.00042616,7]
[313363200,1707234429179,-327.886222,0.00042654,15]
[313363201,1707234429200,-800.0,0.00042654,10]
[313363202,1707234429221,-200.0,0.00042655,15]
[313363203,1707234429241,-800.0,0.00042655,10]
[313363204,1707234429260,-800.0,0.00042655,10]
[313363205,1707234429279,-200.0,0.00042655,9]
[313363206,1707234429300,-3450.28968947,0.00042705,30]
[313363207,1707234429321,-200.0,0.00042862,2]
[313363208,1707234429342,-1912.68521462,0.00042898,11]
[313363209,1707234429363,-173.63850867,0.00042898,2]
[313363210,1707234429384,-738.44499875,0.000429,15]
[313363211,1707234429405,-150.0,0.00042988,2]
[313363212,1707234429425,-300.0,0.00042988,7]
[313363213,1707234429448,-1431.93726726,0.0004299,11]
[313363214,1707234429470,-1381.39715128,0.00042996,30]
[313363215,1707234429491,-1251.1161454,0.00042996,120]
[313363216,1707234429512,-1177.29794369,0.00042997,4]
[313363217,1707234429532,-1023.61844267,0.00042997,2]
[313363218,1707234429556,-304.58743218,0.00042998,4]
[313363219,1707234429576,-155.0,0.00042998,2]
[313363220,1707234429596,-3762.50408095,0.00042998,4]
[313363221,1707234429616,-242.47664776,0.00042998,4]
[313363222,1707234429635,-1166.80131146,0.00042998,4]
[313363223,1707234429655,-6043.29787997,0.00042998,4]
[313363224,1707234429674,-10798.53700548,0.00042998,4]
[313363225,1707234429694,-1689.37980109,0.00042998,4]
[313363226,1707234429717,-3646.41727852,0.00042998,4]
[313363227,1707234429736,-535.35874182,0.00042998,4]
[313363228,1707234429758,-10531.35087382,0.00042998,4]
[313363229,1707234429778,-93005.43313379,0.00042998,2]
[313363235,1707234441284,-366.23585006,0.000295,2]
[313363236,1707234441306,-469.38,0.0004299,10]
[313363237,1707234441326,-24323.66299118,0.00042998,2]
[313363238,1707234444089,-1971.66420128,0.000303,2]
[313363239,1707234444110,-11747.24462918,0.00042998,2]
[313363240,1707234444129,-516.12024107,0.00042998,4]
[313363241,1707234444153,-1419.26339744,0.00042998,4]
[313363242,1707234444171,-312.24874462,0.00042998,4]
[313363243,1707234444193,-160.69080403,0.00042998,4]
[313363244,1707234444213,-2359.52787309,0.00042998,4]
[313363245,1707234444233,-207.04274963,0.00042998,4]
[313363246,1707234444251,-235.5313728,0.00042998,4]
[313363247,1707234444272,-217.95663899,0.00042998,2]
[313363248,1707234444292,-1439.05736907,0.00042998,2]
[313363249,1707234444311,-2441.41931624,0.00042998,2]
[313363250,1707234444332,-228.40463702,0.00042998,4]
[313363251,1707234444353,-231.33588532,0.00042998,4]
[313363252,1707234444374,-150.0,0.00042998,30]
[313363253,1707234444394,-155.19708348,0.00042999,4]
[313363254,1707234444413,-2309.44872168,0.00042999,4]
[313363255,1707234444434,-5103.8118109,0.00042999,4]
[313363259,1707234452103,-200.0,0.00030299,2]
[313363260,1707234452123,-255.05584052,0.00042138,3]
[313363261,1707234452146,-391.15,0.0004299,10]
[313363262,1707234452166,-310.01398269,0.00042998,4]
[313363263,1707234452186,-155.0,0.00042998,2]
[313363264,1707234452205,-22291.99764734,0.00042999,4]
[313363265,1707234452226,-199.104,0.00042999,30]
[313363266,1707234452248,-2254.94583869,0.00043,23]
[313363268,1707234454108,-21022.27830596,0.00043,23]
[313363329,1707234634516,-374.26112338,0.000295,2]
[313363330,1707234634526,-155.26881105,0.00037533,6]
[313363331,1707234634535,-300.0,0.0004,30]
[313363332,1707234634545,-310.01398269,0.00040478,4]
[313363333,1707234634555,-157.91,0.00040479,2]
[313363334,1707234634563,-309.24313469,0.00041,30]
[313363335,1707234634573,-360.0,0.00042143,12]
[313363336,1707234634582,-150.42,0.00042278,2]
[313363337,1707234634592,-250.0,0.00042335,2]
[313363338,1707234634601,-382.0379882,0.00042669,15]
[313363339,1707234634610,-216.52,0.00042699,2]
[313363340,1707234634619,-200.0,0.00042785,8]
[313363341,1707234634628,-941.0,0.0004299,3]
[313363342,1707234634639,-15697.53868058,0.00042996,4]
[313363343,1707234634649,-300.0,0.00042997,5]
[313363344,1707234634659,-304.3222988,0.00042999,2]
[313363345,1707234634669,-472.76862645,0.00042999,2]
[313363346,1707234634679,-22673.32058006,0.00042999,4]
[313363347,1707234634689,-12878.52100056,0.00043,23]
[313363348,1707234634707,-46168.74881715,0.00043,23]
[313363349,1707234634717,-800.0,0.00043,3]
[313363350,1707234634726,-1165.0,0.00043,7]
[313363351,1707234634735,-200.0,0.00043,2]
[313363352,1707234634744,-2253.33051575,0.00043,3]
[313363353,1707234634754,-669.7365704,0.00043,20]
[313363354,1707234634763,-196.0,0.00043,90]
[313363355,1707234634772,-4000.0,0.00043,2]
[313363356,1707234634781,-3151.8535,0.0004301,7]
[313363357,1707234634790,-200.0,0.0004301,30]
[313363358,1707234634799,-200.0,0.0004301,30]
[313363359,1707234634808,-200.0,0.0004301,30]
[313363360,1707234634817,-200.0,0.0004301,30]
[313363361,1707234634826,-199.0,0.0004301,30]
[313363362,1707234634835,-500.0,0.0004301,120]
[313363363,1707234634844,-150.0,0.0004301,30]
[313363364,1707234634853,-399.622174,0.0004301,30]
[313363365,1707234634863,-233.6,0.0004309,2]
[313363366,1707234634872,-907.1317,0.00043406,2]
[313363367,1707234634881,-1000.0,0.00043763,15]
[313363368,1707234634892,-809.31,0.00043836,15]
[313363371,1707234634901,-566.04113226,0.0004389,5]
[313363374,1707234634910,-1165.0,0.000439,7]
[313363377,1707234634919,-479.17121292,0.000439,6]
[313363380,1707234634929,-180.0,0.00043954,2]
[313363383,1707234634939,-205.0,0.0004396,10]
[313363386,1707234634948,-348.89051711,0.00043999,60]
[313363389,1707234634958,-17223.25667694,0.00044,24]
[313363393,1707234634970,-82776.74332306,0.00044,24]
[313363395,1707234634979,-2405.88873002,0.00044,120]
[313363397,1707234634988,-1912.68521456,0.00044041,11]
[313363399,1707234634998,-862.0,0.00044255,7]
[313363401,1707234635007,-5746.0,0.00044486,2]
[313363403,1707234635017,-4490.20614677,0.00044548,4]
[313363410,1707234635084,-253.12,0.00044548,4]
[313363413,1707234635142,-1599.39969865,0.00044548,4]
[313363437,1707234637926,-15434.26470983,0.00044548,4]
[313363438,1707234637936,-1165.0,0.000447,7]
[313363439,1707234637946,-479.17121288,0.00044846,6]
[313363440,1707234637955,-160.94007495,0.00044936,2]
[313363441,1707234637964,-383.97991713,0.00044941,4]
[313363442,1707234637973,-155.78766469,0.00044941,4]
[313363443,1707234637982,-155.0,0.00044941,4]
[313363444,1707234637991,-282.08995367,0.00044941,4]
[313363445,1707234638001,-155.69363516,0.00044941,2]
[313363446,1707234638010,-277.36424085,0.00044942,4]
[313363447,1707234638019,-155.6573906,0.00044998,4]
[313363448,1707234638029,-326.59977459,0.00044999,4]
[313363449,1707234638043,-446.34934978,0.00045,4]
[313363450,1707234638053,-254.0,0.00045,5]
[313363451,1707234638063,-850.0,0.00045,3]
[313363452,1707234638073,-1300.0,0.00045,52]
[313363453,1707234638083,-6093.0,0.00045,30]
[313363454,1707234638092,-1912.68521456,0.00045184,12]
[313363455,1707234638102,-566.04113212,0.00045469,5]
[313363456,1707234638112,-1165.0,0.000455,30]
[313363457,1707234638121,-479.17121288,0.00045791,7]
[313363458,1707234638130,-4126.27917405,0.00045906,4]
[313363459,1707234638143,-1165.0,0.000463,30]
[313363460,1707234638152,-1912.68521456,0.00046327,12]
[313363461,1707234638161,-1000.0,0.00046417,30]
[313363462,1707234638170,-1000.0,0.00046417,30]
[313363463,1707234638179,-500.0,0.00046575,3]
[313363464,1707234638188,-479.17121288,0.00046737,8]
[313363465,1707234638197,-300.0,0.000469,17]
[313363466,1707234638206,-4857.46925957,0.00046976,7]
[313363467,1707234638215,-3396.1357103,0.00046976,7]
[313363468,1707234638224,-900.0,0.00047,3]
[313363469,1707234638233,-233.6,0.00047008,2]
[313363470,1707234638243,-566.04113212,0.00047048,5]
[313363471,1707234638252,-1165.0,0.000471,30]
[313363472,1707234638261,-1000.0,0.00047154,30]
[313363474,1707234638270,-1000.0,0.00047154,30]
[313363475,1707234638279,-1000.0,0.00047154,30]
[313363476,1707234638288,-1000.0,0.00047154,30]
[313363477,1707234638297,-1510.131,0.00047448,24]
[313363478,1707234638307,-1912.68521456,0.00047471,13]
[313363479,1707234638317,-809.31,0.00047572,15]
[313363480,1707234638326,-200.0,0.00047624,2]
[313363481,1707234638336,-157.91,0.00047648,2]
[313363482,1707234638345,-479.17121288,0.00047682,9]
[313363483,1707234638354,-500.0,0.00047945,3]
[313363484,1707234638364,-205.0,0.0004797,16]
[313363485,1707234638374,-856.63576473,0.00048,4]
[313363486,1707234638383,-1165.0,0.00048,30]
[313363489,1707234638397,-169.3864359,0.0004805,30]
[313363492,1707234638406,-169.3864359,0.00048071,30]
[313363494,1707234638415,-676.69984793,0.00048155,30]
[313363496,1707234638424,-169.3864359,0.00048167,30]
[313363497,1707234638434,-173.33889268,0.00048175,30]
[313363498,1707234638444,-676.69984793,0.00048191,30]
[313363499,1707234638453,-156.80178582,0.0004821,30]
[313363500,1707234638462,-6873.32235815,0.0004823,2]
[313363501,1707234638471,-676.69984793,0.00048247,30]
[313363502,1707234638481,-676.69984793,0.00048281,30]
[313363503,1707234638490,-676.69984793,0.00048294,30]
[313363504,1707234638499,-1606.0,0.00048334,30]
[313363505,1707234638508,-169.3864359,0.0004834,30]
[313363506,1707234638517,-676.69984793,0.0004848,30]
[313363507,1707234638528,-166.66666666,0.00048569,30]
[313363508,1707234638537,-676.69984793,0.00048595,30]
[313363509,1707234638547,-1912.68521456,0.00048614,13]
[313363510,1707234638556,-676.69984793,0.00048617,30]
[313363511,1707234638566,-566.04113212,0.00048627,5]
[313363512,1707234638575,-479.17121288,0.00048628,10]
[313363513,1707234638585,-676.69984793,0.00048631,30]
[313363514,1707234638594,-676.69984793,0.00048663,30]
[313363515,1707234638603,-676.69984793,0.00048666,30]
[313363516,1707234638612,-169.3864359,0.0004867,30]
[313363517,1707234638621,-177.0,0.0004869,2]
[313363518,1707234638630,-21808.22098755,0.000487,2]
[313363519,1707234638643,-1165.0,0.000488,30]
[313363520,1707234638652,-600.0,0.000489,17]
[313363521,1707234638662,-676.69984793,0.00048981,30]
[313363522,1707234638671,-2000.0,0.00049,2]
[313363523,1707234638680,-950.0,0.00049,3]
[313363524,1707234638690,-343.13,0.00049,120]
[313363525,1707234638699,-258.03,0.00049,60]
[313363526,1707234638710,-169.3864359,0.00049096,30]
[313363527,1707234638719,-676.69984793,0.00049114,30]
[313363528,1707234638728,-258.03,0.00049137,60]
[313363529,1707234638737,-169.3864359,0.00049174,30]
[313363530,1707234638746,-676.69984793,0.00049178,30]
[313363531,1707234638756,-169.16423206,0.00049192,7]
[313363532,1707234638765,-167.01321768,0.00049206,30]
[313363533,1707234638774,-11533.33868264,0.00049214,25]
[313363534,1707234638784,-165.56669244,0.00049215,35]
[313363535,1707234638793,-152.21491406,0.00049215,41]
[313363536,1707234638802,-5000.0,0.00049215,7]
[313363537,1707234638812,-5011.8357,0.00049215,120]
[313363538,1707234638821,-169.3864359,0.00049222,30]
[313363539,1707234638830,-173.57613894,0.00049249,15]
[313363540,1707234638839,-178.31982653,0.00049251,30]
[313363541,1707234638848,-258.03,0.00049274,60]
[313363542,1707234638857,-2839.0,0.0004929,2]
[313363543,1707234638867,-94005.7788866,0.00049295,11]
[313363544,1707234638876,-241.72345676,0.00049295,2]
[313363545,1707234638885,-150.0,0.000493,39]
[313363546,1707234638898,-519.8344,0.000493,60]
[313363547,1707234638907,-121428.0229017,0.00049305,11]
[313363548,1707234639320,-325.96,0.0004399,10]
[313363549,1707234639330,-28967.57335171,0.00049305,11]
[313363551,1707234639698,-52901.86279987,0.00049305,11]
[313363552,1707234639709,-5261.35766414,0.00049305,11]
[313363553,1707234639725,-1361.41679501,0.00049305,11]
[313363554,1707234639737,-72097.10314757,0.00049305,11]
[313363555,1707234639746,-631.69899155,0.00049315,2]
[313363556,1707234639755,-539.65962839,0.00049315,2]
[313363557,1707234639764,-500.0,0.00049315,2]
[313363558,1707234639773,-527.4145319,0.00049315,2]
[313363559,1707234639782,-500.0,0.00049315,2]
[313363560,1707234639792,-546.26265627,0.00049315,2]
[313363561,1707234639801,-1000.0,0.00049315,2]
[313363562,1707234639812,-158.27084216,0.00049315,2]
[313363563,1707234639821,-179.51518898,0.00049315,2]
[313363564,1707234639830,-221.29799458,0.00049315,2]
[313363565,1707234639840,-315.68010188,0.00049315,2]
[313363566,1707234639849,-500.0,0.00049315,2]
[313363567,1707234639858,-500.0,0.00049315,2]
[313363568,1707234639867,-500.0,0.00049315,2]
[313363569,1707234639876,-500.0,0.00049315,2]
[313363570,1707234639886,-500.0,0.00049315,10]
[313363571,1707234639898,-500.0,0.00049315,2]
[313363572,1707234639907,-645.71015715,0.00049315,2]
[313363573,1707234639917,-615.36234319,0.00049315,2]
[313363574,1707234639927,-500.0,0.00049315,2]
[313363575,1707234639936,-519.3471542,0.00049315,2]
[313363576,1707234639944,-500.0,0.00049315,2]
[313363577,1707234639954,-577.48420299,0.00049315,2]
[313363578,1707234639962,-590.2669458,0.00049315,2]
[313363579,1707234639972,-575.09505002,0.00049315,2]
[313363580,1707234639981,-500.0,0.00049315,2]
[313363581,1707234639991,-500.0,0.00049315,2]
[313363582,1707234639999,-546.84525356,0.00049315,2]
[313363583,1707234640009,-500.0,0.00049315,2]
[313363584,1707234640018,-500.0,0.00049315,2]
[313363585,1707234640029,-626.58535616,0.00049315,2]
[313363586,1707234640039,-500.0,0.00049315,2]
[313363587,1707234640049,-404.23455077,0.00049315,2]
[313363588,1707234640058,-500.0,0.00049315,2]
[313363589,1707234640067,-500.0,0.00049315,2]
[313363590,1707234640077,-590.21437288,0.00049315,2]
[313363591,1707234640086,-336.4067138,0.00049315,2]
[313363592,1707234640095,-500.0,0.00049315,2]
[313363593,1707234640105,-560.66421962,0.00049315,2]
[313363594,1707234640115,-500.0,0.00049315,2]
[313363595,1707234640125,-502.57702621,0.00049315,2]
[313363596,1707234640135,-500.0,0.00049315,2]
[313363597,1707234640147,-315.96975067,0.00049315,2]
[313363598,1707234640156,-500.0,0.00049315,2]
[313363599,1707234640165,-621.15399263,0.00049315,2]
[313363600,1707234640175,-580.89497131,0.00049315,2]
[313363601,1707234640184,-583.56500707,0.00049315,2]
[313363602,1707234640194,-640.07607557,0.00049315,2]
[313363603,1707234640204,-500.0,0.00049315,2]
[313363604,1707234640213,-500.0,0.00049315,2]
[313363605,1707234640223,-500.0,0.00049315,2]
[313363606,1707234640233,-500.0,0.00049315,2]
[313363607,1707234640242,-575.38603167,0.00049315,2]
[313363608,1707234640251,-274.37088833,0.00049315,2]
[313363609,1707234640261,-608.58229697,0.00049315,2]
[313363610,1707234640269,-604.75691885,0.00049315,2]
[313363611,1707234640278,-551.37990458,0.00049315,2]
[313363613,1707234640288,-593.16307014,0.00049315,2]
[313363614,1707234640297,-599.84827871,0.00049315,2]
[313363615,1707234640306,-538.63209582,0.00049315,2]
[313363616,1707234640315,-500.0,0.00049315,3]
[313363617,1707234640324,-649.07778995,0.00049315,2]
[313363618,1707234640333,-500.0,0.00049315,2]
[313363619,1707234640342,-607.05611661,0.00049315,2]
[313363621,1707234640352,-500.0,0.00049315,2]
[313363622,1707234640361,-566.21353202,0.00049315,2]
[313363624,1707234640371,-586.24101866,0.00049315,2]
[313363626,1707234640380,-538.76203304,0.00049315,2]
[313363627,1707234640392,-524.19618446,0.00049315,2]
[313363628,1707234640401,-500.0,0.00049315,2]
[313363629,1707234640410,-500.0,0.00049315,2]
[313363630,1707234640419,-500.0,0.00049315,2]
[313363631,1707234640428,-500.0,0.00049315,2]
[313363632,1707234640437,-500.0,0.00049315,2]
[313363633,1707234640447,-500.0,0.00049315,2]
[313363634,1707234640457,-508.55711188,0.00049315,2]
[313363635,1707234640466,-500.0,0.00049315,2]
[313363636,1707234640475,-505.8159693,0.00049315,2]
[313363637,1707234640484,-526.27551233,0.00049315,2]
[313363638,1707234640494,-360.45769759,0.00049315,2]
[313363639,1707234640503,-500.74345583,0.00049315,2]
[313363640,1707234640511,-500.0,0.00049315,2]
[313363641,1707234640521,-309.68674072,0.00049315,7]
[313363642,1707234640530,-500.0,0.00049315,2]
[313363643,1707234640539,-500.0,0.00049315,2]
[313363644,1707234640548,-500.0,0.00049315,2]
[313363645,1707234640557,-500.0,0.00049315,2]
[313363646,1707234640566,-500.0,0.00049315,2]
[313363647,1707234640576,-530.1479992,0.00049315,2]
[313363648,1707234640585,-577.58430162,0.00049315,2]
[313363649,1707234640595,-183.65063914,0.00049315,2]
[313363650,1707234640604,-587.72284573,0.00049315,2]
[313363651,1707234640613,-598.4966523,0.00049315,2]
[313363652,1707234640623,-572.23106669,0.00049315,2]
[313363653,1707234640632,-500.69779459,0.00049315,2]
[313363654,1707234640644,-553.92306364,0.00049315,2]
[313363655,1707234640653,-357.06876786,0.00049315,2]
[313363656,1707234640663,-500.0,0.00049315,2]
[313363657,1707234640673,-534.05093129,0.00049315,2]
[313363658,1707234640682,-626.545976,0.00049315,2]
[313363659,1707234640692,-150.16951359,0.00049315,2]
[313363660,1707234640702,-527.46556478,0.00049315,2]
[313363661,1707234640711,-504.04813963,0.00049315,2]
[313363662,1707234640721,-524.57422942,0.00049315,2]
[313363663,1707234640731,-536.2351841,0.00049315,2]
[313363664,1707234640741,-189.4151662,0.00049315,2]
[313363665,1707234640751,-500.0,0.00049315,2]
[313363666,1707234640761,-221.00147111,0.00049315,2]
[313363667,1707234640769,-540.58503652,0.00049315,2]
[313363668,1707234640778,-296.30652557,0.00049315,2]
[313363669,1707234640787,-620.86365723,0.00049315,2]
[313363670,1707234640797,-500.0,0.00049315,2]
[313363671,1707234640806,-500.0,0.00049315,2]
[313363672,1707234640815,-500.0,0.00049315,2]
[313363673,1707234640825,-500.0,0.00049315,2]
[313363674,1707234640834,-502.23602342,0.00049315,2]
[313363675,1707234640843,-500.0,0.00049315,2]
[313363676,1707234640853,-500.0,0.00049315,2]
[313363677,1707234640862,-500.0,0.00049315,2]
[313363678,1707234640871,-500.0,0.00049315,2]
[313363679,1707234640881,-538.7366895,0.00049315,2]
[313363680,1707234640892,-519.04906872,0.00049315,2]
[313363681,1707234640901,-278.28257614,0.00049315,2]
[313363682,1707234640911,-639.14806053,0.00049315,2]
[313363683,1707234640920,-500.0,0.00049315,2]
[313363684,1707234640929,-500.0,0.00049315,2]
[313363685,1707234640938,-500.0,0.00049315,2]
[313363686,1707234640946,-500.0,0.00049315,2]
[313363687,1707234640955,-500.0,0.00049315,2]
[313363688,1707234640965,-224.96549117,0.00049315,2]
[313363689,1707234640974,-500.0,0.00049315,2]
[313363690,1707234640983,-568.60125164,0.00049315,2]
[313363691,1707234640992,-528.86487914,0.00049315,2]
[313363692,1707234641001,-250.0,0.00049315,2]
[313363693,1707234641010,-500.0,0.00049315,2]
[313363694,1707234641019,-500.0,0.00049315,2]
[313363695,1707234641029,-500.0,0.00049315,2]
[313363696,1707234641039,-500.0,0.00049315,2]
[313363697,1707234641049,-500.0,0.00049315,2]
[313363698,1707234641058,-522.56151983,0.00049315,2]
[313363699,1707234641067,-207.23345677,0.00049315,2]
[313363700,1707234641077,-157.33870855,0.00049315,2]
[313363701,1707234641086,-500.0,0.00049315,2]
[313363702,1707234641095,-535.80941963,0.00049315,2]
[313363703,1707234641105,-530.67098113,0.00049315,2]
[313363704,1707234641114,-199.31556486,0.00049315,2]
[313363705,1707234641124,-538.79576621,0.00049315,2]
[313363706,1707234641133,-500.0,0.00049315,2]
[313363707,1707234641144,-533.35353235,0.00049315,2]
[313363708,1707234641153,-500.0,0.00049315,2]
[313363709,1707234641162,-500.0,0.00049315,2]
[313363710,1707234641171,-603.64002476,0.00049315,2]
[313363711,1707234641180,-195.41010603,0.00049315,2]
[313363712,1707234641189,-157.04988785,0.00049315,2]
[313363713,1707234641198,-594.46407758,0.00049315,2]
[313363714,1707234641207,-539.57400509,0.00049315,2]
[313363715,1707234641216,-500.0,0.00049315,2]
[313363716,1707234641226,-500.0,0.00049315,2]
[313363717,1707234641235,-228.88768935,0.00049315,2]
[313363718,1707234641244,-500.0,0.00049315,2]
[313363719,1707234641253,-500.0,0.00049315,2]
[313363720,1707234641263,-500.0,0.00049315,2]
[313363721,1707234641272,-284.30378262,0.00049315,2]
[313363722,1707234641281,-500.0,0.00049315,2]
[313363723,1707234641290,-606.31332774,0.00049315,2]
[313363724,1707234641300,-530.93286206,0.00049315,2]
[313363725,1707234641309,-500.0,0.00049315,2]
[313363726,1707234641318,-602.6341838,0.00049315,2]
[313363727,1707234641327,-500.0,0.00049315,2]
[313363728,1707234641336,-500.0,0.00049315,2]
[313363729,1707234641345,-500.0,0.00049315,2]
[313363730,1707234641354,-220.77322147,0.00049315,2]
[313363731,1707234641363,-608.0561283,0.00049315,2]
[313363732,1707234641372,-500.0,0.00049315,2]
[313363733,1707234641382,-500.0,0.00049315,2]